{"text_format":"1","workbook":"xlsx","n_sheets":10,"sheets":["Menu","Fiche Admin","Recommandations","Grille salaires","Ex dépenses éligibles","Budget COORDINATEUR","Budget PARTENAIRE 1","Budget PARTENAIRE 2","Budget PARTENAIRE 3","Synthèse financière"],"not_rendered":{"charts":0,"images":0,"macros":0,"external_links":0,"defined_names":5,"comments":8,"pivot_tables":0},"unopened":[],"bounds":{"document_bytes":16777216,"sheet_cells":100000,"rows_first":2000,"rows_last":500,"rows_between":2000,"halvings":0,"cell_chars":16384,"cell_head_chars":4096},"cells_cut":0,"cells_raw":0,"read":"whole","date_system":"1900"}

{"sheet":"Menu","index":0,"n_rows":16,"n_cols":2,"rows_kept":16,"cut":false,"hidden":false,"merged":[[1,1,1,9],[15,1,15,9],[3,1,14,9]]}
[]
[null,"Bienvenue sur le Kit ANR destiné à aider le montage de projets ANR (Appel à projets générique)"]
[]
[null,"Ce kit présente 9 onglets : \n\nFiche Admin : Les informations sur l’Université Paris Nanterre dont vous avez besoin pour compléter l’onglet de l’ANR\nRecommandations : Des recommandations pour bien monter le budget.\nGrille salaires : Les montants des salaires chargés pour le calcul des frais de personnel.\nEx dépenses éligibles : Liste non exhaustive d'exemples de dépenses éligibles\nBudget (4 onglets, 1 par partenaire impliqué) : Une trame de budget pour le coordinateur et chacun des partenaires).\nSynthèse financière : Onglet dans lequel le calcul se fait automatiquement à partir des données chiffrées renseignées dans les onglets Budget.\nRéfs : Des documents outils de l'ANR\n\nSi vous avez besoin d'aide vous pouvez contacter la DRED : appel-projet@liste.parisnanterre.fr"]
[]
[]
[]
[]
[]
[]
[]
[]
[]
[]
[]
[null,"Vous pouvez également contacter le chargé ou la chargée d'appui de votre laboratoire, dont vous pouvez consulter la liste en cliquant ici."]

{"sheet":"Fiche Admin","index":1,"n_rows":49,"n_cols":8,"rows_kept":49,"cut":false,"hidden":false,"merged":[[33,1,33,5],[26,1,26,5],[4,7,4,13],[5,7,8,13],[1,7,1,13],[2,7,3,13],[1,1,1,5],[6,1,6,5],[8,1,8,5]]}
[]
[null,"Université Paris Nanterre",null,null,null,null,null,"La tutelle gestionnaire"]
[null,"SIRET de la tutelle gestionnaire","199 212 044 00010 ",null,null,null,null,"La tutelle gestionnaire est l'établissement qui effectue des bons de commandes et met en paiement les factures."]
[]
[null,"Tutelle gestionnaire du financement","Université Paris Nanterre",null,null,null,null,"La tutelle hébergeante"]
[null,null,null,null,null,null,null,"La tutelle hébergeante est la tutelle de l'UR qui est propriétaire/gestionnaire du bâtiment dans lequel travaille la/le responsable scientifique du projet. Elle perçoit le preciput, qui est une participation de l'ANR à ses coûts d'infrastructures de recherche, incluant ses coûts immobiliers, d'investissement et de maintenance de plateformes et d'équipements mutualisés."]
[null,"Si la tutelle hébergeante est l'Université Paris Nanterre vous pouvez utiliser le n° de SIRET pour la retrouver dans la liste lors de la soumission sur la plateforme."]
[]
[null,"Personne habilitée à représenter juridiquement l'établissement gestionnaire "]
[]
[null,"Civilité","Madame"]
[null,"Nom","ROLLAND-DIAMOND"]
[null,"Prénom","Caroline"]
[null,"Fonction","Présidente"]
[null,"Numéro de rue",200]
[null,"Adresse","avenue de la République"]
[null,"Complément d'adresse"]
[null,"Code Postal",92001]
[null,"Ville","NANTERRE"]
[null,"Cedex","CEDEX"]
[null,"Pays","FRANCE"]
[null,"Téléphone","01 40 97 47 05"]
[null,"Fax"]
[null,"Email","presidence@liste.parisnanterre.fr"]
[]
[]
[null,"Identité bancaire"]
[]
[null,"Nom de la banque","TRESOR PUBLIC NANTERRE"]
[null,"Titulaire du compte","Université Paris Nanterre - Agence comptable"]
[null,"Coordonnées du compte IBAN","FR76 10071 92000 00001000004 81"]
[null,"BIC/SWIFT","TRPUFRP1"]
[]
[null,"Responsable administratif de l'établissement gestionnaire"]
[]
[null,"Civilité","Madame"]
[null,"Nom","NORDIN"]
[null,"Prénom","Julie"]
[null,"Fonction","Directrice adjointe Direction de la recherche et des études doctorales"]
[null,"Numéro de rue",200]
[null,"Adresse","avenue de la République"]
[null,"Complément d'adresse"]
[null,"Code Postal",92001]
[null,"Ville","NANTERRE"]
[null,"Cedex","CEDEX"]
[null,"Pays","FRANCE"]
[null,"Téléphone","01 40 97 73 23"]
[null,"Fax"]
[null,"Email","julie.nordin@parisnanterre.fr"]

{"sheet":"Recommandations","index":2,"n_rows":13,"n_cols":3,"rows_kept":13,"cut":false,"hidden":false,"merged":[[0,1,0,2],[3,1,9,1]]}
[null,"Quelques recommandations"]
[null,"Accord de la hiérarchie et de l'établissement","Chaque  coordinateur  ou  coordinatrice  scientifique  sollicitant  une  subvention  s’engage formellement  sur  le  fait  que  sa  hiérarchie  (notamment  leurs  directeurs  d’unité,  le service Valorisation de la DRED et  les  personnes  habilitées  à  représenter  juridiquement l’établissement gestionnaire de la subvention, ou ses représentants ou représentantes) a donné l’accord à sa démarche de dépôt en cours et que les informations relatives à la demande leur ont été communiquées. La liste des dépôts enregistrés par l’ANR pourra être envoyée par l’ANR aux directeurs ou directrices de laboratoire et aux responsables administratifs des établissements gestionnaires pour les projets les concernant.\n\nChaque coordinateur ou coordinatrice scientifique sollicitant une subvention s'engage également sur l'attribution d'une partie des moyens humains de son équipe, laboratoire ou établissement à la gestion et au suivi du projet, dans le cas où celui-ci serait retenu."]
[null,"Changement de budget entre la phase 1 et la phase 2","L'amplitude de la modification budgétaire entre la phase 1 et la phase 2 est de +/- 7%. Cependant tout changement réglementaire (changement des frais de gestion…) qui intervient entre les deux phases n'est pas concerné par cette restriction. \nLe budget n'est pas évalué en phase 1, mais il est fortement conseillé d'être aussi précis que possible du fait de cette restriction."]
[null,"Frais de personnels","Taux de précarité : L’ensemble des personnels est comptabilisé en personnes-mois. Un taux de 30% au PLUS est recommandé. "]
[null,null,"Taux de précarité (%) = personnels non permanents financé par l'ANR/ total des personnels permanents ou non permanents, financé ou non par l'ANR"]
[null,null,"Seuls les frais de personnels des établissements pour lesquels un financement est demandé à l'ANR entrent dans le calcul (notamment, les partenaires étrangers n'entrent pas dans ce calcul). Les doctorants et les stagiaires sont exclus du calcul (mais sont éligibles aux financements de l'ANR). "]
[null,null,"Les Doctorants (PhD) : sont recrutés pour une durée maximale de 36 mois et doivent être budgétisés sur un seul partenaire du projet.\n\nIndemnité de fin contrat : A partir du 1er janvier 2021, les personnes recrutées sur un CDD de droit public d’un an ou moins (renouvellement inclus) peuvent ouvrir le droit à l’indemnité de fin contrat (prime de précarité) si leur contrat n'est pas renouvelé. Cette indemnité est un coût éligible et à prévoir dans le salaire (+10%)."]
[null,null,"Indemnité de stage :  Le taux horaire de la gratification est égal au minimum à 3,9 € par heure de stage, correspondant à 15 % du plafond horaire de la sécurité sociale (soit 26 € x 0,15). Attention : ce montant est revalorisé très régulièrement."]
[null,null,"JCJC / Admissibilité des coûts de personnel : Le salaire des jeunes chercheurs et jeunes chercheuses soumettant un projet au titre de l'instrument JCJC n'est pas un coût admissible à l'aide ANR. "]
[null,null,"Décharge d'enseignement (JCJC uniquement) : Un-e jeune chercheur-se peut demander à l'ANR le financement d'une décharge d'enseignement. Celle-ci ne peut dépasser 96h/an."]
[null,"Matériels","Equipement informatique, scientifique, consommables, petits équipements…. "]
[null,"Prestation de service","Le porteur peut faire exécuter des prestations par des tiers extérieurs au Projet.  Le coût de ces prestations doit rester inférieur ou égal à 50 % du coût global entrant dans l’assiette de l’aide."]
[null,"Frais généraux"," Ce poste comprend les dépenses  liées aux missions (hébergement, trajets, restauration), participation et organisation de colloques, frais de réception...\nLes APC (Article Processing Charges : frais demandé pour la publication d'articles directement en Open Access par voie \"dorée\") sont éligibles."]

{"sheet":"Grille salaires","index":3,"n_rows":16,"n_cols":4,"rows_kept":16,"cut":false,"hidden":false,"merged":[[1,0,1,1],[1,3,2,6]]}
[]
["Salaires permanents Université Paris Nanterre",null,null,"Pour calculer les salaires du personnel non permanent, veuillez prendre contact avec la DRED :\n\nappel-projets@liste.parisnanterre.fr"]
[null,"1 mois"]
["Assistant ingénieur ",5048.33]
["Ingénieur d'études CN",6144.87]
["Ingénieur d'études HC",7880.25]
["Ingénieur de recherche CN",8204.16]
["Ingénieur de recherche HC",11859.73]
["Maître de conférences CN",7797.77]
["Maître de conférences HC",9590.56]
["Professeur 1 CL",11776.03]
["Professeur 2 CL",9860.75]
["Professeur CE",13519.86]
[]
[]
["Dernière mise à jour : octobre 2024"]

{"sheet":"Ex dépenses éligibles","index":4,"n_rows":40,"n_cols":4,"rows_kept":40,"cut":false,"hidden":false,"merged":[[14,0,21,0],[23,0,35,0],[17,3,18,3],[2,0,12,0],[14,3,16,3],[23,3,28,3],[2,3,11,3]]}
[]
[null,"Type de dépense (indicatif)","Exemples de dépenses (hors RH)","Commentaires"]
["Instruments et matériels","Achat de matériels","Ordinateur ","Les dépenses doivent être justifiées par les besoins scientifiques du projet.\nL'équipement est à acheter de le début du projet sauf si justifié (arrivée d'un post doc en année 3 du projet par exemple). "]
[null,"Achat de matériels","Tablette"]
[null,"Achat de matériels","IPhone"]
[null,"Achat de matériels","Fourniture de bureau"]
[null,"Achat de matériels","Disque dur externe"]
[null,"Achat de matériels","Lunettes 3D"]
[null,"Achat de matériels","Bases de données"]
[null,"Achat de matériels","Logiciels"]
[null,"Achat de matériels","Dictaphone"]
[null,"Achat de matériels","Ouvrages scientifiques / Documentation…"]
[null,"Achat de matériels","Articles spécifiques ","Exemples : chocolats pour une étude sensorielle, tenue de plongée pour un doctorant…"]
[]
["Prestation de service","Prestations intellectuelles","Transcription d'enregistrements","Les devis ou anciennes factures peuvent servir pour vous donner une idée de combien budgétiser."]
[null,"Prestations intellectuelles","Traductions"]
[null,"Prestations intellectuelles","Etudes de marketing"]
[null,"Prestations intellectuelles","Plateforme de partage de données","Dans le plan de gestion des données, vous serez invités à penser au cycle de vie des données depuis leur création, partage, gestion et éventuellement diffusion. Certaines archives sont payantes, d'autres non. "]
[null,"Prestations intellectuelles","Stockage de données"]
[null,"Prestations intellectuelles","Consultation juridique"]
[null,"Prestations intellectuelles","Formation spécifique pour une membre de l'équipe"]
[null,"Sous-traitance \"scientifique\"","Traitement statistique"]
[]
["Frais généraux","Frais de missions","Transport : avion, train, voiture, bateau, bus, tram, métro","Attention : préférez demander aux gestionnaires d'acheter vos billets via le marché au lieu d'avancer les frais. \nSe référer aux règles de l'établissement. "]
[null,"Frais de missions","Location de véhicule"]
[null,"Frais de missions","Restauration"]
[null,"Frais de missions","Hébergement : Hôtel, AirBnB, location d'un gîte…"]
[null,"Frais de missions","Frais de visa"]
[null,"Frais de missions","Inscription conférence, colloque"]
[null,"Organisation de colloques","Location de salle"]
[null,"Organisation de colloques","Frais de bouche"]
[null,"Organisation de colloques","Cadeaux","Sacs, stylos, calepins…"]
[null,"Organisation de colloques","Frais de mission des invités"]
[null,"Organisation de colloques","Communication","Posters, site Internet, actes de colloque, programmes, impression en facturation interne…"]
[null,"Frais de publication","Article Processing Charges"]
[null,"Frais de publication","Publication d'ouvrages"]
[]
["Dépenses de facturation interne","Prestations intellectuelles","Traductions"]
[]
["Dépenses de facturation entre partenaires \n(externe à l'UPN)","Utilisation de plateformes","Analyses"]

{"sheet":"Budget COORDINATEUR","index":5,"n_rows":148,"n_cols":21,"rows_kept":148,"cut":false,"hidden":false,"merged":[[0,1,0,13],[38,11,38,15],[47,1,47,8],[16,13,18,13],[14,8,15,13],[16,12,18,12],[33,8,34,11],[33,12,34,12],[6,1,6,2],[6,7,6,10],[9,3,9,4],[16,11,18,11],[16,9,18,9],[16,10,18,10],[3,3,3,10],[16,6,18,6],[123,2,138,2],[16,1,18,1],[16,4,18,4],[16,3,18,3],[14,1,15,6],[58,1,58,8],[41,1,41,8],[40,1,40,8],[39,1,39,8],[38,1,38,8],[46,1,46,8],[45,1,45,8],[44,1,44,8],[43,1,43,8],[42,1,42,8],[48,1,48,8],[2,3,2,10],[6,3,6,4],[16,8,18,8],[16,5,18,5],[4,3,4,10],[7,6,7,10],[31,8,31,13],[65,5,65,8],[66,5,66,8],[1,11,7,13],[61,5,61,8],[62,5,62,8],[63,5,63,8],[64,5,64,8],[52,1,52,8],[51,1,51,8],[50,1,50,8],[57,1,57,8],[56,1,56,8],[55,1,55,8],[54,1,54,8],[53,1,53,8]]}
[null,"Cette trame de budget constitue un outil d'aide au montage du budget de votre projet. Il est impératif de faire valider ce budget en amont du dépôt auprès du service Valorisation de la DRED."]
[]
[null,"Porteur (Nom/Prénom)",null,null,null,null,null,null,null,null,null,null,null,null,null,null,null,null,null,null,"Paramètres menu déroulant"]
[null,"Unité",null,null,null,null,null,null,null,null,null,null,null,null,null,null,null,null,"EC liste",null,"Coûts personnel "]
[null,"Instrument de financement ANR",null,null,null,null,null,null,null,null,null,null,null,null,null,null,null,null,"oui",null,"CDD"]
[null,null,null,null,null,null,null,null,null,null,null,null,null,null,null,null,null,null,"non",null,"CDI"]
[null,"ACRONYME (Projet)",null,null,null,null,"N°RNSR",null,null,null,null,null,null,null,null,null,null,null,null,null,"Doctorant"]
[null,null,null,null,null,null,"Sur le site RNSR, remplir la case « libellé » avec l’acronyme de votre laboratoire puis « Rechercher »",null,null,null,null,null,null,null,null,null,null,null,null,null,"Décharge (sans pers.mois)"]
[null,null,null,null,null,null,null,null,null,null,null,null,null,null,null,null,null,null,null,null,"Stagiaire"]
[null,"Durée du projet (en mois): ",null,null,null,null,null,null,null,null,null,null,null,null,null,null,null,null,null,null,"Auto entrepreneur"]
[null,null,null,null,null,null,null,null,null,null,null,null,null,null,null,null,null,null,null,null,"Titulaire"]
[]
[]
[]
[null,"Personnel non financé par l'ANR\n(obtenir les coûts auprès de l'employeur)",null,null,null,null,null,null,"Personnel financés par l'ANR \n(obtenir les coûts auprès de l'employeur)"]
[]
[null,"Catégorie\n(renseigner le grade de l'agent)",null,"Activité d'Enseignant-chercheur ","Nombre pers.mois","coût \nmensuel €","Estimation  €\n(coût moyen)",null,"Catégorie\n(renseigner le grade de l'agent)","Statut (calcul de taux de précarité)","Nombre pers.mois","coût \nmensuel €","Indemnité de fin contrat (CDDs≤1an)","Estimation \nCoût  €"]
[null,null,"Statut"]
[null,null,null,null,null,null,null,null,null,null,null,null,null,null,null,null,null,null,null,"homme.mois précaire"]
[null,null,null,null,null,null,{"$f":"IF(D20=$S$5,($F20/2)*$E20,($F20*$E20))","v":0},null,null,null,null,null,{"$f":"IF(AND(J20=\"CDD\",K20<=12),(L20*K20)*0.1,0)","v":0},{"$f":"L20*K20+M20","v":0},null,null,null,null,"calcule taux de précarité",{"$f":"IF(J20=\"CDD\",K20,\"\")","v":""}]
[null,null,null,null,null,null,0,null,null,null,null,null,{"$f":"IF(AND(J21=\"CDD\",K21<=12),(L21*K21)*0.1,0)","v":0},0,null,null,null,null,null,{"$f":"IF(J21=\"CDD\",K21,\"\")","v":""}]
[null,null,null,null,null,null,0,null,null,null,null,null,{"$f":"IF(AND(J22=\"CDD\",K22<=12),(L22*K22)*0.1,0)","v":0},{"$f":"L22*K22+M22","v":0},null,null,null,null,null,""]
[null,null,null,null,null,null,{"$f":"IF(D23=$S$5,($F23/2)*$E23,($F23*$E23))","v":0},null,null,null,null,null,{"$f":"IF(AND(J23=\"CDD\",K23<=12),(L23*K23)*0.1,0)","v":0},0,null,null,null,null,null,""]
[null,null,null,null,null,null,0,null,null,null,null,null,{"$f":"IF(AND(J24=\"CDD\",K24<=12),(L24*K24)*0.1,0)","v":0},0,null,null,null,null,null,""]
[null,null,null,null,null,null,0,null,null,null,null,null,{"$f":"IF(AND(J25=\"CDD\",K25<=12),(L25*K25)*0.1,0)","v":0},0,null,null,null,null,null,""]
[null,null,null,null,null,null,0,null,null,null,null,null,0,0,null,null,null,null,null,""]
[null,null,null,null,null,null,0,null,null,null,null,null,0,{"$f":"L27*K27+M27","v":0},null,null,null,null,null,""]
[null,null,null,null,null,null,0,null,null,null,null,null,0,0,null,null,null,null,null,""]
[null,null,null,null,null,null,0,null,null,null,null,null,0,0,null,null,null,null,null,""]
[null,null,null,null,null,null,0,null,null,null,null,null,0,0,null,null,null,null,null,""]
[null,"Total ",null,null,{"$f":"SUM(E20:E30)","v":0},null,{"$f":"SUM(G20:G30)","v":0},null,"Total financé ANR",null,{"$f":"SUM(K20:K30)","v":0},null,null,{"$f":"SUM(N20:N30)","v":0},null,null,null,null,null,{"$f":"SUM(T20:T30)","v":0}]
[null,null,null,null,null,null,null,null,"Une modulation de service d’enseignement est possible uniquement pour le coordinateur scientifique d'un JCJC. Elle doit figurer ici. Elle ne peut excéder 96h équivalent TD par an."]
[]
[null,null,null,null,null,null,null,null,"Taux de précarité (doctorants et stagiaires exclus)",null,null,null,{"$f":"T31/(E31+K31)","v":{"$error":"#DIV/0!"}}]
[]
[]
[]
[]
[null,"Instruments et matériels",null,null,null,null,null,null,null,{"$f":"J40+J41+J42","v":0}]
[null,"Achat de matériels (équipement, frais de transport, frais d'installation, frais de maintenance/révision/entretien, frais de réparation, frais d'évolution)",null,null,null,null,null,null,null,0]
[null,"Consommables \"scientifiques\" (ordinateurs, logiciels, produits chimiques, ...)",null,null,null,null,null,null,null,0]
[null,"Location de matériels ",null,null,null,null,null,null,null,0]
[null,"Bâtiment et terrains",null,null,null,null,null,null,null,{"$f":"J44+J45","v":0}]
[null,"Location de locaux scientifiques ",null,null,null,null,null,null,null,0]
[null,"Aménagement de locaux existants (montant de l'amortissement des travaux d'aménagement)",null,null,null,null,null,null,null,0]
[null,"Prestations de services et DPI (Limité à 50% du montant de l'aide)",null,null,null,null,null,null,null,{"$f":"J47+J48+J49","v":0}]
[null,"Prestations intellectuelles (frais de PI, conseils, études marketing…)",null,null,null,null,null,null,null,0]
[null,"Sous-traitance \"scientifique\" (analyse et essais techniques, saisie ou collecte de données, élimination des déchets)",null,null,null,null,null,null,null,0]
[null,"Frais de publication (Article Processing Charges, traductions, ouvrages …)",null,null,null,null,null,null,null,0]
[null,"Frais généraux ",null,null,null,null,null,null,null,{"$f":"J51+J52+J53","v":0}]
[null,"Frais de missions (frais d'inscription, hébergement, transport, visa, …)",null,null,null,null,null,null,null,0]
[null,"Frais de réception",null,null,null,null,null,null,null,0]
[null,"Participation/organisation de colloques",null,null,null,null,null,null,null,0]
[null,"Dépenses de facturation interne",null,null,null,null,null,null,null,{"$f":"J55+J56","v":0}]
[null,"Utilisation de plateformes",null,null,null,null,null,null,null,0]
[null,"Location locaux ",null,null,null,null,null,null,null,0]
[null,"Dépenses de facturation entre partenaires (externe à l'Université Paris Nanterre)",null,null,null,null,null,null,null,{"$f":"J58+J59","v":0}]
[null,"Utilisation de plateformes",null,null,null,null,null,null,null,0]
[null,"Location locaux",null,null,null,null,null,null,null,0]
[]
[]
[null,null,null,null,null,"TOTAL",null,null,null,{"$f":"SUM(G31+N31+J39+J43+J46+J50+J54+J57)","v":0}]
[null,null,null,null,null,"TOTAL ELIGIBLE (hors frais de personnel non financé par l'ANR)",null,null,null,{"$f":"J62-G31","v":0}]
[null,null,null,null,null,"Frais de gestion tutelle gestionnaire",null,null,null,{"$f":"J63*'Synthèse financière'!G19","v":0}]
[null,null,null,null,null,"Frais de gestion laboratoire",null,null,null,{"$f":"J63*'Synthèse financière'!G22","v":0}]
[null,null,null,null,null,"TOTAL DEMANDE",null,null,null,{"$f":"+J63+J64+J65","v":0}]
[null,null,null,null,null,"Coût total déclaré",null,null,null,{"$f":"J62+J64+J65","v":0}]
[]
[]
[]
[]
[]
[]
[]
[]
[]
[]
[]
[]
[]
[]
[]
[]
[]
[]
[]
[]
[]
[]
[]
[]
[]
[]
[]
[]
[]
[]
[]
[]
[]
[]
[]
[]
[]
[]
[]
[]
[]
[]
[]
[]
[]
[]
[]
[]
[]
[]
[]
[]
[]
[]
[]
[]
[null,null,"Alertes erreurs",{"$f":"IF(#REF!=\"catégorie\",1,0)","v":{"$error":"#REF!"}},null,null,null,null,null,null,null,{"$f":"IF(#REF!=\"catégorie\",1,0)","v":{"$error":"#REF!"}},{"$f":"IF(#REF!=\"catégorie\",1,0)","v":{"$error":"#REF!"}},{"$f":"IF(#REF!=\"catégorie\",1,0)","v":{"$error":"#REF!"}}]
[null,null,null,{"$f":"IF(SUM(#REF!)>0,1,0)","v":{"$error":"#REF!"}},null,null,null,null,null,null,null,{"$f":"IF(SUM(K20:K20)>0,1,0)","v":0},{"$f":"IF(SUM(N20:N20)>0,1,0)","v":0},{"$f":"IF(SUM(#REF!)>0,1,0)","v":{"$error":"#REF!"}}]
[null,null,null,{"$f":"D124+D125","v":{"$error":"#REF!"}},null,null,null,null,null,null,null,{"$f":"L124+L125","v":{"$error":"#REF!"}},{"$f":"M124+M125","v":{"$error":"#REF!"}},{"$f":"N124+N125","v":{"$error":"#REF!"}}]
[]
[]
[]
[]
[null,null,null,{"$f":"IF(I21=\"catégorie\",1,0)","v":0},null,null,null,null,null,null,null,{"$f":"IF(I23=\"catégorie\",1,0)","v":0},{"$f":"IF(#REF!=\"catégorie\",1,0)","v":{"$error":"#REF!"}},{"$f":"IF(I27=\"catégorie\",1,0)","v":0}]
[null,null,null,{"$f":"IF(SUM(#REF!)>0,1,0)","v":{"$error":"#REF!"}},null,null,null,null,null,null,null,{"$f":"IF(SUM(#REF!)>0,1,0)","v":{"$error":"#REF!"}},{"$f":"IF(SUM(#REF!)>0,1,0)","v":{"$error":"#REF!"}},{"$f":"IF(SUM(#REF!)>0,1,0)","v":{"$error":"#REF!"}}]
[null,null,null,{"$f":"D131+D132","v":{"$error":"#REF!"}},null,null,null,null,null,null,null,{"$f":"L131+L132","v":{"$error":"#REF!"}},{"$f":"M131+M132","v":{"$error":"#REF!"}},{"$f":"N131+N132","v":{"$error":"#REF!"}}]
[]
[]
[]
[null,null,null,{"$f":"IF(#REF!=\"catégorie\",1,0)","v":{"$error":"#REF!"}},null,null,null,null,null,null,null,{"$f":"IF(#REF!=\"catégorie\",1,0)","v":{"$error":"#REF!"}},{"$f":"IF(#REF!=\"catégorie\",1,0)","v":{"$error":"#REF!"}},{"$f":"IF(#REF!=\"catégorie\",1,0)","v":{"$error":"#REF!"}}]
[null,null,null,{"$f":"IF(SUM(#REF!)>0,1,0)","v":{"$error":"#REF!"}},null,null,null,null,null,null,null,{"$f":"IF(SUM(#REF!)>0,1,0)","v":{"$error":"#REF!"}},{"$f":"IF(SUM(#REF!)>0,1,0)","v":{"$error":"#REF!"}},{"$f":"IF(SUM(#REF!)>0,1,0)","v":{"$error":"#REF!"}}]
[null,null,null,{"$f":"D137+D138","v":{"$error":"#REF!"}},null,null,null,null,null,null,null,{"$f":"L137+L138","v":{"$error":"#REF!"}},{"$f":"M137+M138","v":{"$error":"#REF!"}},{"$f":"N137+N138","v":{"$error":"#REF!"}}]
[]
[]
[]
[]
[null,null,null,{"$f":"IF(#REF!=\"\",1,0)","v":{"$error":"#REF!"}},null,null,null,null,null,null,null,{"$f":"IF(#REF!>0,1,0)","v":{"$error":"#REF!"}},{"$f":"IF(#REF!>0,1,0)","v":{"$error":"#REF!"}},{"$f":"#REF!+M144","v":{"$error":"#REF!"}}]
[null,null,null,{"$f":"IF(#REF!=\"\",1,0)","v":{"$error":"#REF!"}},null,null,null,null,null,null,null,{"$f":"IF(#REF!>0,1,0)","v":{"$error":"#REF!"}},{"$f":"IF(#REF!>0,1,0)","v":{"$error":"#REF!"}},{"$f":"#REF!+M145","v":{"$error":"#REF!"}}]
[null,null,null,{"$f":"IF(#REF!=\"\",1,0)","v":{"$error":"#REF!"}},null,null,null,null,null,null,null,{"$f":"IF(#REF!>0,1,0)","v":{"$error":"#REF!"}},{"$f":"IF(#REF!>0,1,0)","v":{"$error":"#REF!"}},{"$f":"#REF!+M146","v":{"$error":"#REF!"}}]
[null,null,null,{"$f":"IF(#REF!=\"\",1,0)","v":{"$error":"#REF!"}},null,null,null,null,null,null,null,{"$f":"IF(#REF!>0,1,0)","v":{"$error":"#REF!"}},{"$f":"IF(#REF!>0,1,0)","v":{"$error":"#REF!"}},{"$f":"#REF!+M147","v":{"$error":"#REF!"}}]
[null,null,null,{"$f":"IF(#REF!=\"\",1,0)","v":{"$error":"#REF!"}},null,null,null,null,null,null,null,{"$f":"IF(#REF!>0,1,0)","v":{"$error":"#REF!"}},{"$f":"IF(#REF!>0,1,0)","v":{"$error":"#REF!"}},{"$f":"#REF!+M148","v":{"$error":"#REF!"}}]

{"sheet":"Budget PARTENAIRE 1","index":6,"n_rows":148,"n_cols":21,"rows_kept":148,"cut":false,"hidden":false,"merged":[[7,6,7,10],[1,11,7,13],[0,1,0,13],[2,3,2,10],[3,3,3,10],[6,1,6,2],[6,3,6,4],[6,7,6,10],[4,3,4,10],[9,3,9,4],[14,1,15,6],[14,8,15,13],[16,1,18,1],[16,3,18,3],[16,4,18,4],[16,5,18,5],[16,6,18,6],[16,8,18,8],[16,9,18,9],[16,10,18,10],[16,11,18,11],[16,12,18,12],[16,13,18,13],[66,5,66,8],[33,8,34,11],[33,12,34,12],[50,1,50,8],[38,1,38,8],[38,11,38,15],[39,1,39,8],[40,1,40,8],[41,1,41,8],[42,1,42,8],[43,1,43,8],[44,1,44,8],[45,1,45,8],[46,1,46,8],[47,1,47,8],[31,8,31,13],[56,1,56,8],[57,1,57,8],[58,1,58,8],[123,2,138,2],[51,1,51,8],[52,1,52,8],[48,1,48,8],[53,1,53,8],[54,1,54,8],[55,1,55,8],[61,5,61,8],[62,5,62,8],[63,5,63,8],[64,5,64,8],[65,5,65,8]]}
[null,"Cette trame de budget constitue un outil d'aide au montage du budget de votre projet. Il est impératif de faire valider ce budget en amont du dépôt auprès du service Valorisation de la DRED."]
[]
[null,"Porteur (Nom/Prénom)",null,null,null,null,null,null,null,null,null,null,null,null,null,null,null,null,null,null,"Paramètres menu déroulant"]
[null,"Unité",null,null,null,null,null,null,null,null,null,null,null,null,null,null,null,null,"EC liste",null,"Coûts personnel "]
[null,"Instrument de financement ANR",null,null,null,null,null,null,null,null,null,null,null,null,null,null,null,null,"oui",null,"CDD"]
[null,null,null,null,null,null,null,null,null,null,null,null,null,null,null,null,null,null,"non",null,"CDI"]
[null,"ACRONYME (Projet)",null,null,null,null,"N°RNSR",null,null,null,null,null,null,null,null,null,null,null,null,null,"Doctorant"]
[null,null,null,null,null,null,"Sur le site RNSR, remplir la case « libellé » avec l’acronyme de votre laboratoire puis « Rechercher »",null,null,null,null,null,null,null,null,null,null,null,null,null,"Décharge (sans pers.mois)"]
[null,null,null,null,null,null,null,null,null,null,null,null,null,null,null,null,null,null,null,null,"Stagiaire"]
[null,"Durée du projet (en mois): ",null,null,null,null,null,null,null,null,null,null,null,null,null,null,null,null,null,null,"Auto entrepreneur"]
[null,null,null,null,null,null,null,null,null,null,null,null,null,null,null,null,null,null,null,null,"Titulaire"]
[]
[]
[]
[null,"Personnel non financé par l'ANR\n(obtenir les coûts auprès de l'employeur)",null,null,null,null,null,null,"Personnel financés par l'ANR \n(obtenir les coûts auprès de l'employeur)"]
[]
[null,"Catégorie\n(renseigner le grade de l'agent)",null,"Activité d'Enseignant-chercheur ","Nombre pers.mois","coût \nmensuel €","Estimation  €\n(coût moyen)",null,"Catégorie\n(renseigner le grade de l'agent)","Statut (calcul de taux de précarité)","Nombre pers.mois","coût \nmensuel €","Indemnité de fin contrat (CDDs≤1an)","Estimation \nCoût  €"]
[null,null,"Statut"]
[null,null,null,null,null,null,null,null,null,null,null,null,null,null,null,null,null,null,null,"homme.mois précaire"]
[null,null,null,null,null,null,{"$f":"IF(D20=$S$5,($F20/2)*$E20,($F20*$E20))","v":0},null,null,null,null,null,{"$f":"IF(AND(J20=\"CDD\",K20<=12),(L20*K20)*0.1,0)","v":0},{"$f":"L20*K20+M20","v":0},null,null,null,null,"calcule taux de précarité",{"$f":"IF(J20=\"CDD\",K20,\"\")","v":""}]
[null,null,null,null,null,null,0,null,null,null,null,null,{"$f":"IF(AND(J21=\"CDD\",K21<=12),(L21*K21)*0.1,0)","v":0},0,null,null,null,null,null,{"$f":"IF(J21=\"CDD\",K21,\"\")","v":""}]
[null,null,null,null,null,null,0,null,null,null,null,null,0,{"$f":"L22*K22+M22","v":0},null,null,null,null,null,""]
[null,null,null,null,null,null,0,null,null,null,null,null,{"$f":"IF(AND(J23=\"CDD\",K23<=12),(L23*K23)*0.1,0)","v":0},0,null,null,null,null,null,""]
[null,null,null,null,null,null,0,null,null,null,null,null,{"$f":"IF(AND(J24=\"CDD\",K24<=12),(L24*K24)*0.1,0)","v":0},0,null,null,null,null,null,""]
[null,null,null,null,null,null,0,null,null,null,null,null,{"$f":"IF(AND(J25=\"CDD\",K25<=12),(L25*K25)*0.1,0)","v":0},0,null,null,null,null,null,""]
[null,null,null,null,null,null,0,null,null,null,null,null,0,0,null,null,null,null,null,""]
[null,null,null,null,null,null,0,null,null,null,null,null,0,0,null,null,null,null,null,""]
[null,null,null,null,null,null,0,null,null,null,null,null,0,0,null,null,null,null,null,""]
[null,null,null,null,null,null,0,null,null,null,null,null,0,0,null,null,null,null,null,""]
[null,null,null,null,null,null,0,null,null,null,null,null,0,0,null,null,null,null,null,""]
[null,"Total ",null,null,{"$f":"SUM(E20:E30)","v":0},null,{"$f":"SUM(G20:G30)","v":0},null,"Total financé ANR",null,{"$f":"SUM(K20:K30)","v":0},null,null,{"$f":"SUM(N20:N30)","v":0},null,null,null,null,null,{"$f":"SUM(T20:T30)","v":0}]
[null,null,null,null,null,null,null,null,"Une modulation de service d’enseignement est possible uniquement pour le coordinateur scientifique d'un JCJC. Elle doit figurer ici. Elle ne peut excéder 96h équivalent TD par an."]
[]
[null,null,null,null,null,null,null,null,"Taux de précarité (doctorants et stagiaires exclus)",null,null,null,{"$f":"T31/(E31+K31)","v":{"$error":"#DIV/0!"}}]
[]
[]
[]
[]
[null,"Instruments et matériels",null,null,null,null,null,null,null,{"$f":"J40+J41+J42","v":0}]
[null,"Achat de matériels (équipement, frais de transport, frais d'installation, frais de maintenance/révision/entretien, frais de réparation, frais d'évolution)",null,null,null,null,null,null,null,0]
[null,"Consommables \"scientifiques\" (ordinateurs, logiciels, produits chimiques, ...)",null,null,null,null,null,null,null,0]
[null,"Location de matériels ",null,null,null,null,null,null,null,0]
[null,"Bâtiment et terrains",null,null,null,null,null,null,null,{"$f":"J44+J45","v":0}]
[null,"Location de locaux scientifiques ",null,null,null,null,null,null,null,0]
[null,"Aménagement de locaux existants (montant de l'amortissement des travaux d'aménagement)",null,null,null,null,null,null,null,0]
[null,"Prestations de services et DPI (Limité à 50% du montant de l'aide)",null,null,null,null,null,null,null,{"$f":"J47+J48+J49","v":0}]
[null,"Prestations intellectuelles (frais de PI, conseils, études marketing…)",null,null,null,null,null,null,null,0]
[null,"Sous-traitance \"scientifique\" (analyse et essais techniques, saisie ou collecte de données, élimination des déchets)",null,null,null,null,null,null,null,0]
[null,"Frais de publication (Article Processing Charges, traductions, ouvrages …)",null,null,null,null,null,null,null,0]
[null,"Frais généraux ",null,null,null,null,null,null,null,{"$f":"J51+J52+J53","v":0}]
[null,"Frais de missions (frais d'inscription, hébergement, transport, visa, …)"]
[null,"Frais de réception",null,null,null,null,null,null,null,0]
[null,"Participation/organisation de colloques",null,null,null,null,null,null,null,0]
[null,"Dépenses de facturation interne",null,null,null,null,null,null,null,{"$f":"J55+J56","v":0}]
[null,"Utilisation de plateformes",null,null,null,null,null,null,null,0]
[null,"Location locaux ",null,null,null,null,null,null,null,0]
[null,"Dépenses de facturation entre partenaires (externe à l'Université Paris Nanterre)",null,null,null,null,null,null,null,{"$f":"J58+J59","v":0}]
[null,"Utilisation de plateformes",null,null,null,null,null,null,null,0]
[null,"Location locaux",null,null,null,null,null,null,null,0]
[]
[]
[null,null,null,null,null,"TOTAL",null,null,null,{"$f":"SUM(G31+N31+J39+J43+J46+J50+J54+J57)","v":0}]
[null,null,null,null,null,"TOTAL ELIGIBLE (hors frais de personnel non financé par l'ANR)",null,null,null,{"$f":"J62-G31","v":0}]
[null,null,null,null,null,"Frais de gestion tutelle gestionnaire",null,null,null,{"$f":"J63*'Synthèse financière'!G19","v":0}]
[null,null,null,null,null,"Frais de gestion laboratoire",null,null,null,{"$f":"J63*'Synthèse financière'!G22","v":0}]
[null,null,null,null,null,"TOTAL DEMANDE",null,null,null,{"$f":"+J63+J64+J65","v":0}]
[null,null,null,null,null,"Coût total déclaré",null,null,null,{"$f":"J62+J64+J65","v":0}]
[]
[]
[]
[]
[]
[]
[]
[]
[]
[]
[]
[]
[]
[]
[]
[]
[]
[]
[]
[]
[]
[]
[]
[]
[]
[]
[]
[]
[]
[]
[]
[]
[]
[]
[]
[]
[]
[]
[]
[]
[]
[]
[]
[]
[]
[]
[]
[]
[]
[]
[]
[]
[]
[]
[]
[]
[null,null,"Alertes erreurs",{"$f":"IF(#REF!=\"catégorie\",1,0)","v":{"$error":"#REF!"}},null,null,null,null,null,null,null,{"$f":"IF(#REF!=\"catégorie\",1,0)","v":{"$error":"#REF!"}},{"$f":"IF(#REF!=\"catégorie\",1,0)","v":{"$error":"#REF!"}},{"$f":"IF(#REF!=\"catégorie\",1,0)","v":{"$error":"#REF!"}}]
[null,null,null,{"$f":"IF(SUM(#REF!)>0,1,0)","v":{"$error":"#REF!"}},null,null,null,null,null,null,null,{"$f":"IF(SUM(K20:K20)>0,1,0)","v":0},{"$f":"IF(SUM(N20:N20)>0,1,0)","v":0},{"$f":"IF(SUM(#REF!)>0,1,0)","v":{"$error":"#REF!"}}]
[null,null,null,{"$f":"D124+D125","v":{"$error":"#REF!"}},null,null,null,null,null,null,null,{"$f":"L124+L125","v":{"$error":"#REF!"}},{"$f":"M124+M125","v":{"$error":"#REF!"}},{"$f":"N124+N125","v":{"$error":"#REF!"}}]
[]
[]
[]
[]
[null,null,null,{"$f":"IF(I21=\"catégorie\",1,0)","v":0},null,null,null,null,null,null,null,{"$f":"IF(I23=\"catégorie\",1,0)","v":0},{"$f":"IF(#REF!=\"catégorie\",1,0)","v":{"$error":"#REF!"}},{"$f":"IF(I27=\"catégorie\",1,0)","v":0}]
[null,null,null,{"$f":"IF(SUM(#REF!)>0,1,0)","v":{"$error":"#REF!"}},null,null,null,null,null,null,null,{"$f":"IF(SUM(#REF!)>0,1,0)","v":{"$error":"#REF!"}},{"$f":"IF(SUM(#REF!)>0,1,0)","v":{"$error":"#REF!"}},{"$f":"IF(SUM(#REF!)>0,1,0)","v":{"$error":"#REF!"}}]
[null,null,null,{"$f":"D131+D132","v":{"$error":"#REF!"}},null,null,null,null,null,null,null,{"$f":"L131+L132","v":{"$error":"#REF!"}},{"$f":"M131+M132","v":{"$error":"#REF!"}},{"$f":"N131+N132","v":{"$error":"#REF!"}}]
[]
[]
[]
[null,null,null,{"$f":"IF(#REF!=\"catégorie\",1,0)","v":{"$error":"#REF!"}},null,null,null,null,null,null,null,{"$f":"IF(#REF!=\"catégorie\",1,0)","v":{"$error":"#REF!"}},{"$f":"IF(#REF!=\"catégorie\",1,0)","v":{"$error":"#REF!"}},{"$f":"IF(#REF!=\"catégorie\",1,0)","v":{"$error":"#REF!"}}]
[null,null,null,{"$f":"IF(SUM(#REF!)>0,1,0)","v":{"$error":"#REF!"}},null,null,null,null,null,null,null,{"$f":"IF(SUM(#REF!)>0,1,0)","v":{"$error":"#REF!"}},{"$f":"IF(SUM(#REF!)>0,1,0)","v":{"$error":"#REF!"}},{"$f":"IF(SUM(#REF!)>0,1,0)","v":{"$error":"#REF!"}}]
[null,null,null,{"$f":"D137+D138","v":{"$error":"#REF!"}},null,null,null,null,null,null,null,{"$f":"L137+L138","v":{"$error":"#REF!"}},{"$f":"M137+M138","v":{"$error":"#REF!"}},{"$f":"N137+N138","v":{"$error":"#REF!"}}]
[]
[]
[]
[]
[null,null,null,{"$f":"IF(#REF!=\"\",1,0)","v":{"$error":"#REF!"}},null,null,null,null,null,null,null,{"$f":"IF(#REF!>0,1,0)","v":{"$error":"#REF!"}},{"$f":"IF(#REF!>0,1,0)","v":{"$error":"#REF!"}},{"$f":"#REF!+M144","v":{"$error":"#REF!"}}]
[null,null,null,{"$f":"IF(#REF!=\"\",1,0)","v":{"$error":"#REF!"}},null,null,null,null,null,null,null,{"$f":"IF(#REF!>0,1,0)","v":{"$error":"#REF!"}},{"$f":"IF(#REF!>0,1,0)","v":{"$error":"#REF!"}},{"$f":"#REF!+M145","v":{"$error":"#REF!"}}]
[null,null,null,{"$f":"IF(#REF!=\"\",1,0)","v":{"$error":"#REF!"}},null,null,null,null,null,null,null,{"$f":"IF(#REF!>0,1,0)","v":{"$error":"#REF!"}},{"$f":"IF(#REF!>0,1,0)","v":{"$error":"#REF!"}},{"$f":"#REF!+M146","v":{"$error":"#REF!"}}]
[null,null,null,{"$f":"IF(#REF!=\"\",1,0)","v":{"$error":"#REF!"}},null,null,null,null,null,null,null,{"$f":"IF(#REF!>0,1,0)","v":{"$error":"#REF!"}},{"$f":"IF(#REF!>0,1,0)","v":{"$error":"#REF!"}},{"$f":"#REF!+M147","v":{"$error":"#REF!"}}]
[null,null,null,{"$f":"IF(#REF!=\"\",1,0)","v":{"$error":"#REF!"}},null,null,null,null,null,null,null,{"$f":"IF(#REF!>0,1,0)","v":{"$error":"#REF!"}},{"$f":"IF(#REF!>0,1,0)","v":{"$error":"#REF!"}},{"$f":"#REF!+M148","v":{"$error":"#REF!"}}]

{"sheet":"Budget PARTENAIRE 2","index":7,"n_rows":148,"n_cols":21,"rows_kept":148,"cut":false,"hidden":false,"merged":[[7,6,7,10],[1,11,7,13],[0,1,0,13],[2,3,2,10],[3,3,3,10],[6,1,6,2],[6,3,6,4],[6,7,6,10],[4,3,4,10],[9,3,9,4],[14,1,15,6],[14,8,15,13],[16,1,18,1],[16,3,18,3],[16,4,18,4],[16,5,18,5],[16,6,18,6],[16,8,18,8],[16,9,18,9],[16,10,18,10],[16,11,18,11],[16,12,18,12],[16,13,18,13],[66,5,66,8],[33,8,34,11],[33,12,34,12],[50,1,50,8],[38,1,38,8],[38,11,38,15],[39,1,39,8],[40,1,40,8],[41,1,41,8],[42,1,42,8],[43,1,43,8],[44,1,44,8],[45,1,45,8],[46,1,46,8],[47,1,47,8],[31,8,31,13],[56,1,56,8],[57,1,57,8],[58,1,58,8],[123,2,138,2],[51,1,51,8],[52,1,52,8],[48,1,48,8],[53,1,53,8],[54,1,54,8],[55,1,55,8],[61,5,61,8],[62,5,62,8],[63,5,63,8],[64,5,64,8],[65,5,65,8]]}
[null,"Cette trame de budget constitue un outil d'aide au montage du budget de votre projet. Il est impératif de faire valider ce budget en amont du dépôt auprès du service Valorisation de la DRED."]
[]
[null,"Porteur (Nom/Prénom)",null,null,null,null,null,null,null,null,null,null,null,null,null,null,null,null,null,null,"Paramètres menu déroulant"]
[null,"Unité",null,null,null,null,null,null,null,null,null,null,null,null,null,null,null,null,"EC liste",null,"Coûts personnel "]
[null,"Instrument de financement ANR",null,null,null,null,null,null,null,null,null,null,null,null,null,null,null,null,"oui",null,"CDD"]
[null,null,null,null,null,null,null,null,null,null,null,null,null,null,null,null,null,null,"non",null,"CDI"]
[null,"ACRONYME (Projet)",null,null,null,null,"N°RNSR",null,null,null,null,null,null,null,null,null,null,null,null,null,"Doctorant"]
[null,null,null,null,null,null,"Sur le site RNSR, remplir la case « libellé » avec l’acronyme de votre laboratoire puis « Rechercher »",null,null,null,null,null,null,null,null,null,null,null,null,null,"Décharge (sans pers.mois)"]
[null,null,null,null,null,null,null,null,null,null,null,null,null,null,null,null,null,null,null,null,"Stagiaire"]
[null,"Durée du projet (en mois): ",null,null,null,null,null,null,null,null,null,null,null,null,null,null,null,null,null,null,"Auto entrepreneur"]
[null,null,null,null,null,null,null,null,null,null,null,null,null,null,null,null,null,null,null,null,"Titulaire"]
[]
[]
[]
[null,"Personnel non financé par l'ANR\n(obtenir les coûts auprès de l'employeur)",null,null,null,null,null,null,"Personnel financés par l'ANR \n(obtenir les coûts auprès de l'employeur)"]
[]
[null,"Catégorie\n(renseigner le grade de l'agent)",null,"Activité d'Enseignant-chercheur ","Nombre pers.mois","coût \nmensuel €","Estimation  €\n(coût moyen)",null,"Catégorie\n(renseigner le grade de l'agent)","Statut (calcul de taux de précarité)","Nombre pers.mois","coût \nmensuel €","Indemnité de fin contrat (CDDs≤1an)","Estimation \nCoût  €"]
[null,null,"Statut"]
[null,null,null,null,null,null,null,null,null,null,null,null,null,null,null,null,null,null,null,"homme.mois précaire"]
[null,null,null,null,null,null,{"$f":"IF(D20=$S$5,($F20/2)*$E20,($F20*$E20))","v":0},null,null,null,null,null,{"$f":"IF(AND(J20=\"CDD\",K20<=12),(L20*K20)*0.1,0)","v":0},{"$f":"L20*K20+M20","v":0},null,null,null,null,"calcule taux de précarité",{"$f":"IF(J20=\"CDD\",K20,\"\")","v":""}]
[null,null,null,null,null,null,0,null,null,null,null,null,{"$f":"IF(AND(J21=\"CDD\",K21<=12),(L21*K21)*0.1,0)","v":0},0,null,null,null,null,null,{"$f":"IF(J21=\"CDD\",K21,\"\")","v":""}]
[null,null,null,null,null,null,0,null,null,null,null,null,0,{"$f":"L22*K22+M22","v":0},null,null,null,null,null,""]
[null,null,null,null,null,null,0,null,null,null,null,null,{"$f":"IF(AND(J23=\"CDD\",K23<=12),(L23*K23)*0.1,0)","v":0},0,null,null,null,null,null,""]
[null,null,null,null,null,null,0,null,null,null,null,null,{"$f":"IF(AND(J24=\"CDD\",K24<=12),(L24*K24)*0.1,0)","v":0},0,null,null,null,null,null,""]
[null,null,null,null,null,null,0,null,null,null,null,null,{"$f":"IF(AND(J25=\"CDD\",K25<=12),(L25*K25)*0.1,0)","v":0},0,null,null,null,null,null,""]
[null,null,null,null,null,null,0,null,null,null,null,null,0,0,null,null,null,null,null,""]
[null,null,null,null,null,null,0,null,null,null,null,null,0,0,null,null,null,null,null,""]
[null,null,null,null,null,null,0,null,null,null,null,null,0,0,null,null,null,null,null,""]
[null,null,null,null,null,null,0,null,null,null,null,null,0,0,null,null,null,null,null,""]
[null,null,null,null,null,null,0,null,null,null,null,null,0,0,null,null,null,null,null,""]
[null,"Total ",null,null,{"$f":"SUM(E20:E30)","v":0},null,{"$f":"SUM(G20:G30)","v":0},null,"Total financé ANR",null,{"$f":"SUM(K20:K30)","v":0},null,null,{"$f":"SUM(N20:N30)","v":0},null,null,null,null,null,{"$f":"SUM(T20:T30)","v":0}]
[null,null,null,null,null,null,null,null,"Une modulation de service d’enseignement est possible uniquement pour le coordinateur scientifique d'un JCJC. Elle doit figurer ici. Elle ne peut excéder 96h équivalent TD par an."]
[]
[null,null,null,null,null,null,null,null,"Taux de précarité (doctorants et stagiaires exclus)",null,null,null,{"$f":"T31/(E31+K31)","v":{"$error":"#DIV/0!"}}]
[]
[]
[]
[]
[null,"Instruments et matériels",null,null,null,null,null,null,null,{"$f":"J40+J41+J42","v":0}]
[null,"Achat de matériels (équipement, frais de transport, frais d'installation, frais de maintenance/révision/entretien, frais de réparation, frais d'évolution)",null,null,null,null,null,null,null,0]
[null,"Consommables \"scientifiques\" (ordinateurs, logiciels, produits chimiques, ...)",null,null,null,null,null,null,null,0]
[null,"Location de matériels ",null,null,null,null,null,null,null,0]
[null,"Bâtiment et terrains",null,null,null,null,null,null,null,{"$f":"J44+J45","v":0}]
[null,"Location de locaux scientifiques ",null,null,null,null,null,null,null,0]
[null,"Aménagement de locaux existants (montant de l'amortissement des travaux d'aménagement)",null,null,null,null,null,null,null,0]
[null,"Prestations de services et DPI (Limité à 50% du montant de l'aide)",null,null,null,null,null,null,null,{"$f":"J47+J48+J49","v":0}]
[null,"Prestations intellectuelles (frais de PI, conseils, études marketing…)",null,null,null,null,null,null,null,0]
[null,"Sous-traitance \"scientifique\" (analyse et essais techniques, saisie ou collecte de données, élimination des déchets)",null,null,null,null,null,null,null,0]
[null,"Frais de publication (Article Processing Charges, traductions, ouvrages …)",null,null,null,null,null,null,null,0]
[null,"Frais généraux ",null,null,null,null,null,null,null,{"$f":"J51+J52+J53","v":0}]
[null,"Frais de missions (frais d'inscription, hébergement, transport, visa, …)"]
[null,"Frais de réception",null,null,null,null,null,null,null,0]
[null,"Participation/organisation de colloques",null,null,null,null,null,null,null,0]
[null,"Dépenses de facturation interne",null,null,null,null,null,null,null,{"$f":"J55+J56","v":0}]
[null,"Utilisation de plateformes",null,null,null,null,null,null,null,0]
[null,"Location locaux ",null,null,null,null,null,null,null,0]
[null,"Dépenses de facturation entre partenaires (externe à l'Université Paris Nanterre)",null,null,null,null,null,null,null,{"$f":"J58+J59","v":0}]
[null,"Utilisation de plateformes",null,null,null,null,null,null,null,0]
[null,"Location locaux",null,null,null,null,null,null,null,0]
[]
[]
[null,null,null,null,null,"TOTAL",null,null,null,{"$f":"SUM(G31+N31+J39+J43+J46+J50+J54+J57)","v":0}]
[null,null,null,null,null,"TOTAL ELIGIBLE (hors frais de personnel non financé par l'ANR)",null,null,null,{"$f":"J62-G31","v":0}]
[null,null,null,null,null,"Frais de gestion tutelle gestionnaire",null,null,null,{"$f":"J63*'Synthèse financière'!G19","v":0}]
[null,null,null,null,null,"Frais de gestion laboratoire",null,null,null,{"$f":"J63*'Synthèse financière'!G22","v":0}]
[null,null,null,null,null,"TOTAL DEMANDE",null,null,null,{"$f":"+J63+J64+J65","v":0}]
[null,null,null,null,null,"Coût total déclaré",null,null,null,{"$f":"J62+J64+J65","v":0}]
[]
[]
[]
[]
[]
[]
[]
[]
[]
[]
[]
[]
[]
[]
[]
[]
[]
[]
[]
[]
[]
[]
[]
[]
[]
[]
[]
[]
[]
[]
[]
[]
[]
[]
[]
[]
[]
[]
[]
[]
[]
[]
[]
[]
[]
[]
[]
[]
[]
[]
[]
[]
[]
[]
[]
[]
[null,null,"Alertes erreurs",{"$f":"IF(#REF!=\"catégorie\",1,0)","v":{"$error":"#REF!"}},null,null,null,null,null,null,null,{"$f":"IF(#REF!=\"catégorie\",1,0)","v":{"$error":"#REF!"}},{"$f":"IF(#REF!=\"catégorie\",1,0)","v":{"$error":"#REF!"}},{"$f":"IF(#REF!=\"catégorie\",1,0)","v":{"$error":"#REF!"}}]
[null,null,null,{"$f":"IF(SUM(#REF!)>0,1,0)","v":{"$error":"#REF!"}},null,null,null,null,null,null,null,{"$f":"IF(SUM(K20:K20)>0,1,0)","v":0},{"$f":"IF(SUM(N20:N20)>0,1,0)","v":0},{"$f":"IF(SUM(#REF!)>0,1,0)","v":{"$error":"#REF!"}}]
[null,null,null,{"$f":"D124+D125","v":{"$error":"#REF!"}},null,null,null,null,null,null,null,{"$f":"L124+L125","v":{"$error":"#REF!"}},{"$f":"M124+M125","v":{"$error":"#REF!"}},{"$f":"N124+N125","v":{"$error":"#REF!"}}]
[]
[]
[]
[]
[null,null,null,{"$f":"IF(I21=\"catégorie\",1,0)","v":0},null,null,null,null,null,null,null,{"$f":"IF(I23=\"catégorie\",1,0)","v":0},{"$f":"IF(#REF!=\"catégorie\",1,0)","v":{"$error":"#REF!"}},{"$f":"IF(I27=\"catégorie\",1,0)","v":0}]
[null,null,null,{"$f":"IF(SUM(#REF!)>0,1,0)","v":{"$error":"#REF!"}},null,null,null,null,null,null,null,{"$f":"IF(SUM(#REF!)>0,1,0)","v":{"$error":"#REF!"}},{"$f":"IF(SUM(#REF!)>0,1,0)","v":{"$error":"#REF!"}},{"$f":"IF(SUM(#REF!)>0,1,0)","v":{"$error":"#REF!"}}]
[null,null,null,{"$f":"D131+D132","v":{"$error":"#REF!"}},null,null,null,null,null,null,null,{"$f":"L131+L132","v":{"$error":"#REF!"}},{"$f":"M131+M132","v":{"$error":"#REF!"}},{"$f":"N131+N132","v":{"$error":"#REF!"}}]
[]
[]
[]
[null,null,null,{"$f":"IF(#REF!=\"catégorie\",1,0)","v":{"$error":"#REF!"}},null,null,null,null,null,null,null,{"$f":"IF(#REF!=\"catégorie\",1,0)","v":{"$error":"#REF!"}},{"$f":"IF(#REF!=\"catégorie\",1,0)","v":{"$error":"#REF!"}},{"$f":"IF(#REF!=\"catégorie\",1,0)","v":{"$error":"#REF!"}}]
[null,null,null,{"$f":"IF(SUM(#REF!)>0,1,0)","v":{"$error":"#REF!"}},null,null,null,null,null,null,null,{"$f":"IF(SUM(#REF!)>0,1,0)","v":{"$error":"#REF!"}},{"$f":"IF(SUM(#REF!)>0,1,0)","v":{"$error":"#REF!"}},{"$f":"IF(SUM(#REF!)>0,1,0)","v":{"$error":"#REF!"}}]
[null,null,null,{"$f":"D137+D138","v":{"$error":"#REF!"}},null,null,null,null,null,null,null,{"$f":"L137+L138","v":{"$error":"#REF!"}},{"$f":"M137+M138","v":{"$error":"#REF!"}},{"$f":"N137+N138","v":{"$error":"#REF!"}}]
[]
[]
[]
[]
[null,null,null,{"$f":"IF(#REF!=\"\",1,0)","v":{"$error":"#REF!"}},null,null,null,null,null,null,null,{"$f":"IF(#REF!>0,1,0)","v":{"$error":"#REF!"}},{"$f":"IF(#REF!>0,1,0)","v":{"$error":"#REF!"}},{"$f":"#REF!+M144","v":{"$error":"#REF!"}}]
[null,null,null,{"$f":"IF(#REF!=\"\",1,0)","v":{"$error":"#REF!"}},null,null,null,null,null,null,null,{"$f":"IF(#REF!>0,1,0)","v":{"$error":"#REF!"}},{"$f":"IF(#REF!>0,1,0)","v":{"$error":"#REF!"}},{"$f":"#REF!+M145","v":{"$error":"#REF!"}}]
[null,null,null,{"$f":"IF(#REF!=\"\",1,0)","v":{"$error":"#REF!"}},null,null,null,null,null,null,null,{"$f":"IF(#REF!>0,1,0)","v":{"$error":"#REF!"}},{"$f":"IF(#REF!>0,1,0)","v":{"$error":"#REF!"}},{"$f":"#REF!+M146","v":{"$error":"#REF!"}}]
[null,null,null,{"$f":"IF(#REF!=\"\",1,0)","v":{"$error":"#REF!"}},null,null,null,null,null,null,null,{"$f":"IF(#REF!>0,1,0)","v":{"$error":"#REF!"}},{"$f":"IF(#REF!>0,1,0)","v":{"$error":"#REF!"}},{"$f":"#REF!+M147","v":{"$error":"#REF!"}}]
[null,null,null,{"$f":"IF(#REF!=\"\",1,0)","v":{"$error":"#REF!"}},null,null,null,null,null,null,null,{"$f":"IF(#REF!>0,1,0)","v":{"$error":"#REF!"}},{"$f":"IF(#REF!>0,1,0)","v":{"$error":"#REF!"}},{"$f":"#REF!+M148","v":{"$error":"#REF!"}}]

{"sheet":"Budget PARTENAIRE 3","index":8,"n_rows":148,"n_cols":21,"rows_kept":148,"cut":false,"hidden":false,"merged":[[7,6,7,10],[1,11,7,13],[0,1,0,13],[2,3,2,10],[3,3,3,10],[6,1,6,2],[6,3,6,4],[6,7,6,10],[4,3,4,10],[9,3,9,4],[14,1,15,6],[14,8,15,13],[16,1,18,1],[16,3,18,3],[16,4,18,4],[16,5,18,5],[16,6,18,6],[16,8,18,8],[16,9,18,9],[16,10,18,10],[16,11,18,11],[16,12,18,12],[16,13,18,13],[66,5,66,8],[33,8,34,11],[33,12,34,12],[50,1,50,8],[38,1,38,8],[38,11,38,15],[39,1,39,8],[40,1,40,8],[41,1,41,8],[42,1,42,8],[43,1,43,8],[44,1,44,8],[45,1,45,8],[46,1,46,8],[47,1,47,8],[31,8,31,13],[56,1,56,8],[57,1,57,8],[58,1,58,8],[123,2,138,2],[51,1,51,8],[52,1,52,8],[48,1,48,8],[53,1,53,8],[54,1,54,8],[55,1,55,8],[61,5,61,8],[62,5,62,8],[63,5,63,8],[64,5,64,8],[65,5,65,8]]}
[null,"Cette trame de budget constitue un outil d'aide au montage du budget de votre projet. Il est impératif de faire valider ce budget en amont du dépôt auprès du service Valorisation de la DRED."]
[]
[null,"Porteur (Nom/Prénom)",null,null,null,null,null,null,null,null,null,null,null,null,null,null,null,null,null,null,"Paramètres menu déroulant"]
[null,"Unité",null,null,null,null,null,null,null,null,null,null,null,null,null,null,null,null,"EC liste",null,"Coûts personnel "]
[null,"Instrument de financement ANR",null,null,null,null,null,null,null,null,null,null,null,null,null,null,null,null,"oui",null,"CDD"]
[null,null,null,null,null,null,null,null,null,null,null,null,null,null,null,null,null,null,"non",null,"CDI"]
[null,"ACRONYME (Projet)",null,null,null,null,"N°RNSR",null,null,null,null,null,null,null,null,null,null,null,null,null,"Doctorant"]
[null,null,null,null,null,null,"Sur le site RNSR, remplir la case « libellé » avec l’acronyme de votre laboratoire puis « Rechercher »",null,null,null,null,null,null,null,null,null,null,null,null,null,"Décharge (sans pers.mois)"]
[null,null,null,null,null,null,null,null,null,null,null,null,null,null,null,null,null,null,null,null,"Stagiaire"]
[null,"Durée du projet (en mois): ",null,null,null,null,null,null,null,null,null,null,null,null,null,null,null,null,null,null,"Auto entrepreneur"]
[null,null,null,null,null,null,null,null,null,null,null,null,null,null,null,null,null,null,null,null,"Titulaire"]
[]
[]
[]
[null,"Personnel non financé par l'ANR\n(obtenir les coûts auprès de l'employeur)",null,null,null,null,null,null,"Personnel financés par l'ANR \n(obtenir les coûts auprès de l'employeur)"]
[]
[null,"Catégorie\n(renseigner le grade de l'agent)",null,"Activité d'Enseignant-chercheur ","Nombre pers.mois","coût \nmensuel €","Estimation  €\n(coût moyen)",null,"Catégorie\n(renseigner le grade de l'agent)","Statut (calcul de taux de précarité)","Nombre pers.mois","coût \nmensuel €","Indemnité de fin contrat (CDDs≤1an)","Estimation \nCoût  €"]
[null,null,"Statut"]
[null,null,null,null,null,null,null,null,null,null,null,null,null,null,null,null,null,null,null,"homme.mois précaire"]
[null,null,null,null,null,null,{"$f":"IF(D20=$S$5,($F20/2)*$E20,($F20*$E20))","v":0},null,null,null,null,null,{"$f":"IF(AND(J20=\"CDD\",K20<=12),(L20*K20)*0.1,0)","v":0},{"$f":"L20*K20+M20","v":0},null,null,null,null,"calcule taux de précarité",{"$f":"IF(J20=\"CDD\",K20,\"\")","v":""}]
[null,null,null,null,null,null,0,null,null,null,null,null,{"$f":"IF(AND(J21=\"CDD\",K21<=12),(L21*K21)*0.1,0)","v":0},0,null,null,null,null,null,{"$f":"IF(J21=\"CDD\",K21,\"\")","v":""}]
[null,null,null,null,null,null,0,null,null,null,null,null,0,{"$f":"L22*K22+M22","v":0},null,null,null,null,null,""]
[null,null,null,null,null,null,0,null,null,null,null,null,{"$f":"IF(AND(J23=\"CDD\",K23<=12),(L23*K23)*0.1,0)","v":0},0,null,null,null,null,null,""]
[null,null,null,null,null,null,0,null,null,null,null,null,{"$f":"IF(AND(J24=\"CDD\",K24<=12),(L24*K24)*0.1,0)","v":0},0,null,null,null,null,null,""]
[null,null,null,null,null,null,0,null,null,null,null,null,{"$f":"IF(AND(J25=\"CDD\",K25<=12),(L25*K25)*0.1,0)","v":0},0,null,null,null,null,null,""]
[null,null,null,null,null,null,0,null,null,null,null,null,0,0,null,null,null,null,null,""]
[null,null,null,null,null,null,0,null,null,null,null,null,0,0,null,null,null,null,null,""]
[null,null,null,null,null,null,0,null,null,null,null,null,0,0,null,null,null,null,null,""]
[null,null,null,null,null,null,0,null,null,null,null,null,0,0,null,null,null,null,null,""]
[null,null,null,null,null,null,0,null,null,null,null,null,0,0,null,null,null,null,null,""]
[null,"Total ",null,null,{"$f":"SUM(E20:E30)","v":0},null,{"$f":"SUM(G20:G30)","v":0},null,"Total financé ANR",null,{"$f":"SUM(K20:K30)","v":0},null,null,{"$f":"SUM(N20:N30)","v":0},null,null,null,null,null,{"$f":"SUM(T20:T30)","v":0}]
[null,null,null,null,null,null,null,null,"Une modulation de service d’enseignement est possible uniquement pour le coordinateur scientifique d'un JCJC. Elle doit figurer ici. Elle ne peut excéder 96h équivalent TD par an."]
[]
[null,null,null,null,null,null,null,null,"Taux de précarité (doctorants et stagiaires exclus)",null,null,null,{"$f":"T31/(E31+K31)","v":{"$error":"#DIV/0!"}}]
[]
[]
[]
[]
[null,"Instruments et matériels",null,null,null,null,null,null,null,{"$f":"J40+J41+J42","v":0}]
[null,"Achat de matériels (équipement, frais de transport, frais d'installation, frais de maintenance/révision/entretien, frais de réparation, frais d'évolution)",null,null,null,null,null,null,null,0]
[null,"Consommables \"scientifiques\" (ordinateurs, logiciels, produits chimiques, ...)",null,null,null,null,null,null,null,0]
[null,"Location de matériels ",null,null,null,null,null,null,null,0]
[null,"Bâtiment et terrains",null,null,null,null,null,null,null,{"$f":"J44+J45","v":0}]
[null,"Location de locaux scientifiques ",null,null,null,null,null,null,null,0]
[null,"Aménagement de locaux existants (montant de l'amortissement des travaux d'aménagement)",null,null,null,null,null,null,null,0]
[null,"Prestations de services et DPI (Limité à 50% du montant de l'aide)",null,null,null,null,null,null,null,{"$f":"J47+J48+J49","v":0}]
[null,"Prestations intellectuelles (frais de PI, conseils, études marketing…)",null,null,null,null,null,null,null,0]
[null,"Sous-traitance \"scientifique\" (analyse et essais techniques, saisie ou collecte de données, élimination des déchets)",null,null,null,null,null,null,null,0]
[null,"Frais de publication (Article Processing Charges, traductions, ouvrages …)",null,null,null,null,null,null,null,0]
[null,"Frais généraux ",null,null,null,null,null,null,null,{"$f":"J51+J52+J53","v":0}]
[null,"Frais de missions (frais d'inscription, hébergement, transport, visa, …)"]
[null,"Frais de réception",null,null,null,null,null,null,null,0]
[null,"Participation/organisation de colloques",null,null,null,null,null,null,null,0]
[null,"Dépenses de facturation interne",null,null,null,null,null,null,null,{"$f":"J55+J56","v":0}]
[null,"Utilisation de plateformes",null,null,null,null,null,null,null,0]
[null,"Location locaux ",null,null,null,null,null,null,null,0]
[null,"Dépenses de facturation entre partenaires (externe à l'Université Paris Nanterre)",null,null,null,null,null,null,null,{"$f":"J58+J59","v":0}]
[null,"Utilisation de plateformes",null,null,null,null,null,null,null,0]
[null,"Location locaux",null,null,null,null,null,null,null,0]
[]
[]
[null,null,null,null,null,"TOTAL",null,null,null,{"$f":"SUM(G31+N31+J39+J43+J46+J50+J54+J57)","v":0}]
[null,null,null,null,null,"TOTAL ELIGIBLE (hors frais de personnel non financé par l'ANR)",null,null,null,{"$f":"J62-G31","v":0}]
[null,null,null,null,null,"Frais de gestion tutelle gestionnaire",null,null,null,{"$f":"J63*'Synthèse financière'!G19","v":0}]
[null,null,null,null,null,"Frais de gestion laboratoire",null,null,null,{"$f":"J63*'Synthèse financière'!G22","v":0}]
[null,null,null,null,null,"TOTAL DEMANDE",null,null,null,{"$f":"+J63+J64+J65","v":0}]
[null,null,null,null,null,"Coût total déclaré",null,null,null,{"$f":"J62+J64+J65","v":0}]
[]
[]
[]
[]
[]
[]
[]
[]
[]
[]
[]
[]
[]
[]
[]
[]
[]
[]
[]
[]
[]
[]
[]
[]
[]
[]
[]
[]
[]
[]
[]
[]
[]
[]
[]
[]
[]
[]
[]
[]
[]
[]
[]
[]
[]
[]
[]
[]
[]
[]
[]
[]
[]
[]
[]
[]
[null,null,"Alertes erreurs",{"$f":"IF(#REF!=\"catégorie\",1,0)","v":{"$error":"#REF!"}},null,null,null,null,null,null,null,{"$f":"IF(#REF!=\"catégorie\",1,0)","v":{"$error":"#REF!"}},{"$f":"IF(#REF!=\"catégorie\",1,0)","v":{"$error":"#REF!"}},{"$f":"IF(#REF!=\"catégorie\",1,0)","v":{"$error":"#REF!"}}]
[null,null,null,{"$f":"IF(SUM(#REF!)>0,1,0)","v":{"$error":"#REF!"}},null,null,null,null,null,null,null,{"$f":"IF(SUM(K20:K20)>0,1,0)","v":0},{"$f":"IF(SUM(N20:N20)>0,1,0)","v":0},{"$f":"IF(SUM(#REF!)>0,1,0)","v":{"$error":"#REF!"}}]
[null,null,null,{"$f":"D124+D125","v":{"$error":"#REF!"}},null,null,null,null,null,null,null,{"$f":"L124+L125","v":{"$error":"#REF!"}},{"$f":"M124+M125","v":{"$error":"#REF!"}},{"$f":"N124+N125","v":{"$error":"#REF!"}}]
[]
[]
[]
[]
[null,null,null,{"$f":"IF(I21=\"catégorie\",1,0)","v":0},null,null,null,null,null,null,null,{"$f":"IF(I23=\"catégorie\",1,0)","v":0},{"$f":"IF(#REF!=\"catégorie\",1,0)","v":{"$error":"#REF!"}},{"$f":"IF(I27=\"catégorie\",1,0)","v":0}]
[null,null,null,{"$f":"IF(SUM(#REF!)>0,1,0)","v":{"$error":"#REF!"}},null,null,null,null,null,null,null,{"$f":"IF(SUM(#REF!)>0,1,0)","v":{"$error":"#REF!"}},{"$f":"IF(SUM(#REF!)>0,1,0)","v":{"$error":"#REF!"}},{"$f":"IF(SUM(#REF!)>0,1,0)","v":{"$error":"#REF!"}}]
[null,null,null,{"$f":"D131+D132","v":{"$error":"#REF!"}},null,null,null,null,null,null,null,{"$f":"L131+L132","v":{"$error":"#REF!"}},{"$f":"M131+M132","v":{"$error":"#REF!"}},{"$f":"N131+N132","v":{"$error":"#REF!"}}]
[]
[]
[]
[null,null,null,{"$f":"IF(#REF!=\"catégorie\",1,0)","v":{"$error":"#REF!"}},null,null,null,null,null,null,null,{"$f":"IF(#REF!=\"catégorie\",1,0)","v":{"$error":"#REF!"}},{"$f":"IF(#REF!=\"catégorie\",1,0)","v":{"$error":"#REF!"}},{"$f":"IF(#REF!=\"catégorie\",1,0)","v":{"$error":"#REF!"}}]
[null,null,null,{"$f":"IF(SUM(#REF!)>0,1,0)","v":{"$error":"#REF!"}},null,null,null,null,null,null,null,{"$f":"IF(SUM(#REF!)>0,1,0)","v":{"$error":"#REF!"}},{"$f":"IF(SUM(#REF!)>0,1,0)","v":{"$error":"#REF!"}},{"$f":"IF(SUM(#REF!)>0,1,0)","v":{"$error":"#REF!"}}]
[null,null,null,{"$f":"D137+D138","v":{"$error":"#REF!"}},null,null,null,null,null,null,null,{"$f":"L137+L138","v":{"$error":"#REF!"}},{"$f":"M137+M138","v":{"$error":"#REF!"}},{"$f":"N137+N138","v":{"$error":"#REF!"}}]
[]
[]
[]
[]
[null,null,null,{"$f":"IF(#REF!=\"\",1,0)","v":{"$error":"#REF!"}},null,null,null,null,null,null,null,{"$f":"IF(#REF!>0,1,0)","v":{"$error":"#REF!"}},{"$f":"IF(#REF!>0,1,0)","v":{"$error":"#REF!"}},{"$f":"#REF!+M144","v":{"$error":"#REF!"}}]
[null,null,null,{"$f":"IF(#REF!=\"\",1,0)","v":{"$error":"#REF!"}},null,null,null,null,null,null,null,{"$f":"IF(#REF!>0,1,0)","v":{"$error":"#REF!"}},{"$f":"IF(#REF!>0,1,0)","v":{"$error":"#REF!"}},{"$f":"#REF!+M145","v":{"$error":"#REF!"}}]
[null,null,null,{"$f":"IF(#REF!=\"\",1,0)","v":{"$error":"#REF!"}},null,null,null,null,null,null,null,{"$f":"IF(#REF!>0,1,0)","v":{"$error":"#REF!"}},{"$f":"IF(#REF!>0,1,0)","v":{"$error":"#REF!"}},{"$f":"#REF!+M146","v":{"$error":"#REF!"}}]
[null,null,null,{"$f":"IF(#REF!=\"\",1,0)","v":{"$error":"#REF!"}},null,null,null,null,null,null,null,{"$f":"IF(#REF!>0,1,0)","v":{"$error":"#REF!"}},{"$f":"IF(#REF!>0,1,0)","v":{"$error":"#REF!"}},{"$f":"#REF!+M147","v":{"$error":"#REF!"}}]
[null,null,null,{"$f":"IF(#REF!=\"\",1,0)","v":{"$error":"#REF!"}},null,null,null,null,null,null,null,{"$f":"IF(#REF!>0,1,0)","v":{"$error":"#REF!"}},{"$f":"IF(#REF!>0,1,0)","v":{"$error":"#REF!"}},{"$f":"#REF!+M148","v":{"$error":"#REF!"}}]

{"sheet":"Synthèse financière","index":9,"n_rows":37,"n_cols":12,"rows_kept":37,"cut":false,"hidden":false,"merged":[[4,2,4,5],[29,6,29,7],[32,5,32,6],[32,7,32,8],[2,0,2,1],[2,2,2,5],[3,2,3,5],[22,6,22,7],[24,6,24,7],[8,11,10,11],[19,6,19,7],[26,6,26,7],[27,6,27,7],[6,0,6,11],[8,0,11,0],[8,1,9,2],[8,3,9,4],[8,5,9,6],[8,7,10,7],[8,8,10,8],[8,9,10,9],[8,10,10,10]]}
[null,null,null,null,null,null,null,null,null,null,null,"Date simulation"]
[null,null,null,null,null,null,null,null,null,null,null,{"$f":"NOW()","v":"2024-10-24T17:33:53.560"}]
["Acronyme du projet"]
["Instrument de financement ANR"]
["Durée du projet (en mois)"]
[]
["SYNTHESE DES DONNEES QUI SERONT A REPORTER SUR LE SITE DE SOUMISSION DE L'ANR"]
[]
["SYNTHESE","Personnels Permanents",null,"non permanents avec financement\nANR demandé",null,"non permanents sans financement \nANR demandé",null,"Instruments et matériels","Bâtiments et terrains","Prestations de services (DPI)","Frais généraux ","Totaux"]
[]
[null,"cout","pers.mois","cout","pers.mois","cout","pers.mois"]
[null,{"$f":"SUM(B13:B16)","v":0},{"$f":"SUM(C13:C16)","v":0},{"$f":"SUM(D13:D16)","v":0},{"$f":"SUM(E13:E16)","v":0},{"$f":"SUM(F13:F16)","v":0},{"$f":"SUM(G13:G16)","v":0},{"$f":"SUM(H13:H16)","v":0},0,0,0,0]
["COORDINATEUR",{"$f":"'Budget COORDINATEUR'!G31-F13","v":0},{"$f":"'Budget COORDINATEUR'!E31-G13","v":0},{"$f":"'Budget COORDINATEUR'!N31","v":0},{"$f":"'Budget COORDINATEUR'!K31","v":0},{"$f":"SUMIF('Budget COORDINATEUR'!C20:C30,'Budget COORDINATEUR'!U5,'Budget COORDINATEUR'!G20:G30)+SUMIF('Budget COORDINATEUR'!C20:C30,'Budget COORDINATEUR'!U7,'Budget COORDINATEUR'!G20:G30)+SUMIF('Budget COORDINATEUR'!C20:C30,'Budget COORDINATEUR'!U8,'Budget COORDINATEUR'!G20:G30)+SUMIF('Budget COORDINATEUR'!C20:C30,'Budget COORDINATEUR'!U9,'Budget COORDINATEUR'!G20:G30)","v":0},{"$f":"SUMIF('Budget COORDINATEUR'!C20:C30,'Budget COORDINATEUR'!U5,'Budget COORDINATEUR'!E20:E30)+SUMIF('Budget COORDINATEUR'!C20:C30,'Budget COORDINATEUR'!U7,'Budget COORDINATEUR'!E20:E30)+SUMIF('Budget COORDINATEUR'!C20:C30,'Budget COORDINATEUR'!U8,'Budget COORDINATEUR'!E20:E30)+SUMIF('Budget COORDINATEUR'!C20:C30,'Budget COORDINATEUR'!U9,'Budget COORDINATEUR'!E20:E30)","v":0},{"$f":"'Budget COORDINATEUR'!J39+'Budget COORDINATEUR'!J55+'Budget COORDINATEUR'!J58","v":0},{"$f":"'Budget COORDINATEUR'!J59+'Budget COORDINATEUR'!J56+'Budget COORDINATEUR'!J43","v":0},{"$f":"'Budget COORDINATEUR'!J46","v":0},{"$f":"'Budget COORDINATEUR'!J50","v":0},{"$f":"B13+D13+F13+H13+I13+J13+K13","v":0}]
["PARTENAIRE 1",{"$f":"'Budget PARTENAIRE 1'!G31-F14","v":0},{"$f":"'Budget PARTENAIRE 1'!E31-G14","v":0},{"$f":"'Budget PARTENAIRE 1'!N31","v":0},{"$f":"'Budget PARTENAIRE 1'!K31","v":0},{"$f":"SUMIF('Budget PARTENAIRE 1'!C20:C30,'Budget PARTENAIRE 1'!U5,'Budget PARTENAIRE 1'!G20:G30)+SUMIF('Budget PARTENAIRE 1'!C20:C30,'Budget PARTENAIRE 1'!U7,'Budget PARTENAIRE 1'!G20:G30)+SUMIF('Budget PARTENAIRE 1'!C20:C30,'Budget PARTENAIRE 1'!U8,'Budget PARTENAIRE 1'!G20:G30)+SUMIF('Budget PARTENAIRE 1'!C20:C30,'Budget PARTENAIRE 1'!U9,'Budget PARTENAIRE 1'!G20:G30)","v":0},{"$f":"SUMIF('Budget PARTENAIRE 1'!C20:C30,'Budget PARTENAIRE 1'!U5,'Budget PARTENAIRE 1'!E20:E30)+SUMIF('Budget PARTENAIRE 1'!C20:C30,'Budget PARTENAIRE 1'!U7,'Budget PARTENAIRE 1'!E20:E30)+SUMIF('Budget PARTENAIRE 1'!C20:C30,'Budget PARTENAIRE 1'!U8,'Budget PARTENAIRE 1'!E20:E30)+SUMIF('Budget PARTENAIRE 1'!C20:C30,'Budget PARTENAIRE 1'!U9,'Budget PARTENAIRE 1'!E20:E30)","v":0},{"$f":"'Budget PARTENAIRE 1'!J39+'Budget PARTENAIRE 1'!J55+'Budget PARTENAIRE 1'!J58","v":0},{"$f":"'Budget PARTENAIRE 1'!J59+'Budget PARTENAIRE 1'!J56+'Budget PARTENAIRE 1'!J43","v":0},{"$f":"'Budget PARTENAIRE 1'!J46","v":0},{"$f":"'Budget PARTENAIRE 1'!J50","v":0},{"$f":"B14+D14+F14+H14+I14+J14+K14","v":0}]
["PARTENAIRE 2",{"$f":"'Budget PARTENAIRE 2'!G31-F15","v":0},{"$f":"'Budget PARTENAIRE 2'!E31-G15","v":0},{"$f":"'Budget PARTENAIRE 2'!N31","v":0},{"$f":"'Budget PARTENAIRE 2'!K31","v":0},{"$f":"SUMIF('Budget PARTENAIRE 2'!C20:C30,'Budget PARTENAIRE 2'!U5,'Budget PARTENAIRE 2'!G20:G30)+SUMIF('Budget PARTENAIRE 2'!C20:C30,'Budget PARTENAIRE 2'!U7,'Budget PARTENAIRE 2'!G20:G30)+SUMIF('Budget PARTENAIRE 2'!C20:C30,'Budget PARTENAIRE 2'!U8,'Budget PARTENAIRE 2'!G20:G30)+SUMIF('Budget PARTENAIRE 2'!C20:C30,'Budget PARTENAIRE 2'!U9,'Budget PARTENAIRE 2'!G20:G30)","v":0},{"$f":"SUMIF('Budget PARTENAIRE 2'!C20:C30,'Budget PARTENAIRE 2'!U5,'Budget PARTENAIRE 2'!E20:E30)+SUMIF('Budget PARTENAIRE 2'!C20:C30,'Budget PARTENAIRE 2'!U7,'Budget PARTENAIRE 2'!E20:E30)+SUMIF('Budget PARTENAIRE 2'!C20:C30,'Budget PARTENAIRE 2'!U8,'Budget PARTENAIRE 2'!E20:E30)+SUMIF('Budget PARTENAIRE 2'!C20:C30,'Budget PARTENAIRE 2'!U9,'Budget PARTENAIRE 2'!E20:E30)","v":0},{"$f":"'Budget PARTENAIRE 2'!J39+'Budget PARTENAIRE 2'!J55+'Budget PARTENAIRE 2'!J58","v":0},{"$f":"'Budget PARTENAIRE 2'!J59+'Budget PARTENAIRE 2'!J56+'Budget PARTENAIRE 2'!J43","v":0},{"$f":"'Budget PARTENAIRE 2'!J46","v":0},{"$f":"'Budget PARTENAIRE 2'!J50","v":0},{"$f":"B15+D15+F15+H15+I15+J15+K15","v":0}]
["PARTENAIRE 3",{"$f":"'Budget PARTENAIRE 3'!G31-F16","v":0},{"$f":"'Budget PARTENAIRE 3'!E31-G16","v":0},{"$f":"'Budget PARTENAIRE 3'!N31","v":0},{"$f":"'Budget PARTENAIRE 3'!K31","v":0},{"$f":"SUMIF('Budget PARTENAIRE 3'!C20:C30,'Budget PARTENAIRE 3'!U5,'Budget PARTENAIRE 3'!G20:G30)+SUMIF('Budget PARTENAIRE 3'!C20:C30,'Budget PARTENAIRE 3'!U7,'Budget PARTENAIRE 3'!G20:G30)+SUMIF('Budget PARTENAIRE 3'!C20:C30,'Budget PARTENAIRE 3'!U8,'Budget PARTENAIRE 3'!G20:G30)+SUMIF('Budget PARTENAIRE 3'!C20:C30,'Budget PARTENAIRE 3'!U9,'Budget PARTENAIRE 3'!G20:G30)","v":0},{"$f":"SUMIF('Budget PARTENAIRE 3'!C20:C30,'Budget PARTENAIRE 3'!U5,'Budget PARTENAIRE 3'!E20:E30)+SUMIF('Budget PARTENAIRE 3'!C20:C30,'Budget PARTENAIRE 3'!U7,'Budget PARTENAIRE 3'!E20:E30)+SUMIF('Budget PARTENAIRE 3'!C20:C30,'Budget PARTENAIRE 3'!U8,'Budget PARTENAIRE 3'!E20:E30)+SUMIF('Budget PARTENAIRE 3'!C20:C30,'Budget PARTENAIRE 3'!U9,'Budget PARTENAIRE 3'!E20:E30)","v":0},{"$f":"'Budget PARTENAIRE 3'!J39+'Budget PARTENAIRE 3'!J55+'Budget PARTENAIRE 3'!J58","v":0},{"$f":"'Budget PARTENAIRE 3'!J59+'Budget PARTENAIRE 3'!J56+'Budget PARTENAIRE 3'!J43","v":0},{"$f":"'Budget PARTENAIRE 3'!J46","v":0},{"$f":"'Budget PARTENAIRE 3'!J50","v":0},{"$f":"B16+D16+F16+H16+I16+J16+K16","v":0}]
[]
[]
[null,null,null,"Frais de gestion tutelle gestionnaire",null,null,0.105]
[null,null,null,"Total des frais d'environnement",null,null,{"$f":"(D12+H12+I12+J12+K12)*G19","v":0}]
[]
[null,null,null,"Frais de gestion laboratoire",null,null,0.03]
[null,null,null,"Total des frais d'environnement",null,null,{"$f":"(D12+H12+I12+J12+K12)*G22","v":0}]
[]
[null,null,null,"Total des frais d'environnement",null,null,{"$f":"G20+G23","v":0}]
[]
[null,null,null,null,"Coût déclaré (€)",null,{"$f":"L12+G25","v":0}]
[null,null,null,null,"Taux d'aide demandé(%)",null,1]
[]
[null,null,null,null,"Assiette (€)",null,{"$f":"D12+H12+I12+J12+K12+G25","v":0}]
[]
[]
[null,null,null,"Aide demandée ",null,{"$f":"G30","v":0}]
[]
[null,null,null,null,null,"dont",{"$f":"'Budget COORDINATEUR'!J54+'Budget PARTENAIRE 1'!J54+'Budget PARTENAIRE 2'!J54+'Budget PARTENAIRE 3'!J54","v":0},"€ au titre de la facturation interne sur la totalité du projet"]
[]
[null,null,null,null,null,"dont",{"$f":"'Budget COORDINATEUR'!J57+'Budget PARTENAIRE 1'!J57+'Budget PARTENAIRE 2'!J57+'Budget PARTENAIRE 3'!J57","v":0},"€ au titre de la facture entre partenaires sur la totalité du projet "]